Cogmind - Beta 12 @@@ ROGUE MODE // 2023.11.28 @ 13:56:56 Player: drchaos820 Result: Self-destructed Performance ------------- Evolutions (3) 1500 Regions Visited (8) 1600 Robots Destroyed (105) 525 Value Destroyed (2225) 2225 Prototype IDs (3) 60 Alien Tech Used (0) 0 Bonus (430) 430 TOTAL SCORE: 6340 Bonus ------- High Alert Combat Kills 130 Aligned with FarCom 300 Cogmind --------- Core Integrity 509/700 Matter 21/500 Energy 19/100 System Corruption 0% Temperature Cool (0) Movement Core (200) Ox3 Location -7/Factory Parts ------- > --- POWER (1) -------- (None) > --- PROPULSION (2) --- (None) > --- UTILITY (8) ------ High-capacity Storage Unit High-capacity Matter Pod Advanced Weight Redist. System Visual Processing Unit Terrain Scan Processor Targeting Computer > --- WEAPON (2) ------- (None) > --- INVENTORY (20) --- Light Ion Engine Wheel Wheel Wheel Wheel Compact Wheel Improved Heat Sink Large Storage Unit Medium Matter Pod (0) AWS/Thermal Improved Assault Rifle Shock Bomb Launcher Rocket Launcher Rocket Launcher Mini Grenade Launcher Datajack Mining Laser Peak State ------------ > --- POWER ------------ Light Nuclear Core > --- PROPULSION ------- Wheel Compact Wheel > --- UTILITY ---------- Improved Heat Sink High-capacity Storage Unit Advanced Weight Redist. System Visual Processing Unit Terrain Scan Processor Targeting Computer Hardened Medium Armor Plating Hardened Medium Armor Plating > --- WEAPON ----------- Light Assault Rifle Gauss Rifle > --- INVENTORY -------- Light Ion Engine Wheel Wheel Wheel Wheel Compact Wheel Large Storage Unit Medium Matter Pod High-capacity Matter Pod AWS/Thermal Improved Assault Rifle Shock Bomb Launcher Rocket Launcher Rocket Launcher Mini Grenade Launcher Mini Grenade Launcher Datajack Mining Laser [Rating: 32] Favorites ----------- Power Light Nuclear Core Engine Light Ion Engine Power Core Light Nuclear Core Propulsion Compact Wheel Leg Aluminum Leg Wheel Compact Wheel Utility Terrain Scan Processor Device Improved Terrain Scanner Storage High-capacity Storage Unit Processor Terrain Scan Processor Protection Hardened Medium Armor Plating Weapon Light Assault Rifle Energy Gun Particle Gun Ballistic Gun Light Assault Rifle Launcher Mini Grenade Launcher Special Weapon Mining Laser Build | -11 -10 -10 -9 -9 -9 -8 -8 -7 ------- Run | Jun Mat Min Mat Min Exi Min Mat Fac Slots Evolved 6 | . . . 2 . . . 2 2 Power . | . . . . . . . . . Propulsion . | . . . . . . . . . Utility 6 | . . . 2 . . . 2 2 Weapon . | . . . . . . . . . Parts Attached 86 | 7 1 11 22 . 2 15 15 13 Power 6 | 1 . 1 1 . . 2 1 . Engine 4 | 1 . 1 1 . . 1 . . Core 2 | . . . . . . 1 1 . Reactor . | . . . . . . . . . Propulsion 14 | 2 . 5 3 . . 3 . 1 Treads . | . . . . . . . . . Leg 2 | . . 2 . . . . . . Wheel 12 | 2 . 3 3 . . 3 . 1 Hover . | . . . . . . . . . Flight . | . . . . . . . . . Utility 20 | 2 1 2 5 . 1 . 5 4 Device 4 | 1 . . . . . . 2 1 Storage 7 | 1 1 1 1 . 1 . . 2 Processor 4 | . . . 4 . . . . . Hackware . | . . . . . . . . . Protection 5 | . . 1 . . . . 3 1 Artifact . | . . . . . . . . . Weapon 46 | 2 . 3 13 . 1 10 9 8 Energy Gun 12 | 1 . . 4 . 1 6 . . Energy Cannon . | . . . . . . . . . Ballistic Gun 20 | 1 . 2 5 . . 2 5 5 Ballistic Cannon . | . . . . . . . . . Launcher 12 | . . . 4 . . 1 4 3 Special Weapon 2 | . . 1 . . . 1 . . Impact Weapon . | . . . . . . . . . Slashing Weapon . | . . . . . . . . . Piercing Weapon . | . . . . . . . . . Special Melee Weapon . | . . . . . . . . . Unidentified Prototypes 3 | . . . 1 . 1 . . 1 Parts Lost 21 | . . 6 . . . 5 2 8 Power 3 | . . . . . . 1 1 1 Propulsion 8 | . . 3 . . . 3 . 2 Utility 5 | . . 2 . . . . 1 2 Weapon 5 | . . 1 . . . 1 . 3 Highest Loss Streak 6 | . . 6 . . . 4 1 5 To Critical Strikes . | . . . . . . . . . Average Slot Usage (%) 96 | . 100 97 99 100 92 94 99 89 Engine 6 | . 14 14 11 11 11 1 . . Core 4 | . . . . . . 9 8 5 Leg 1 | . . 7 . . . . . . Wheel 19 | . 28 19 22 22 22 17 18 12 Device 3 | . 14 3 . . . . 8 10 Storage 14 | . 14 23 21 11 11 11 9 10 Processor 21 | . . . 22 33 33 33 27 23 Protection 2 | . . . . . . . 9 11 Energy Gun 7 | . 14 3 5 11 10 15 . . Ballistic Gun 12 | . 14 22 15 11 4 3 16 10 Naked Turns . | . . . . . . . . . Heaviest Build 72 | 12 27 30 54 29 53 53 58 72 Greatest Support 41 | 26 26 26 20 20 20 32 32 41 Greatest Overweight (x) 9 | . 1 9 5 1 2 3 1 3 Average Overweight (x) 1 | . . 1 1 1 1 1 1 1 Largest Inventory Capacity 20 | 8 15 15 15 15 20 20 20 20 Average Capacity 17 | 7 14 15 15 15 16 20 20 20 Most Carried 20 | 1 4 8 15 15 17 20 20 20 Average Carried 13 | . 2 5 13 15 15 17 19 18 Final Capacity 20 | 8 15 15 15 15 20 20 20 20 Final Carried 20 | 1 4 8 15 15 16 20 19 18 Class Distribution -------------------- 71% | Scavenger-Mutant 16% | Mutant 11% | Scavenger-Skirmisher Dominant Class ---------------- Mutant | -10/Materials Scavenger-Mutant | -10/Mines Scavenger-Mutant | -9/Materials Scavenger-Mutant | -9/Mines Scavenger-Mutant | -9/Exiles Scavenger-Mutant | -8/Mines Scavenger-Skirmisher | -8/Materials Scavenger-Mutant | -7/Factory Resources | -11 -10 -10 -9 -9 -9 -8 -8 -7 ----------- Run | Jun Mat Min Mat Min Exi Min Mat Fac Matter Collected 1425 | 284 16 153 385 . 120 158 290 19 Remotely . | . . . . . . . . . Salvage Created 2811 | 216 54 391 799 . . 447 425 479 Parts 184 | 15 8 23 51 . . 32 40 15 Haulers Intercepted 1 | . . . 1 . . . . . Recyclers Shooed 11 | 1 . 1 4 . . 1 4 . Parts Field Recycled . | . . . . . . . . . Retrieved Matter . | . . . . . . . . . Parts Self-Destructed . | . . . . . . . . . Prevented . | . . . . . . . . . Kills | -11 -10 -10 -9 -9 -9 -8 -8 -7 ------- Run | Jun Mat Min Mat Min Exi Min Mat Fac Combat Hostiles Destroyed 58 | . 3 7 14 . . 10 14 10 Guns 20 | . 2 4 3 . . 7 3 1 Cannons 2 | . . 2 . . . . . . AOE 36 | . 1 1 11 . . 3 11 9 Classes Destroyed 13 | 2 1 3 5 . . 1 1 . Worker 10 | . . 3 2 . . . 2 3 Builder 7 | . . 1 1 . . . 4 1 Tunneler 9 | 5 . 1 . . . 2 . 1 Hauler 1 | . . . 1 . . . . . Recycler 13 | 1 . 2 4 . . 2 1 3 Operator 4 | . . . 1 . . . 2 1 Watcher 3 | . . . 2 . . . 1 . Swarmer 23 | . 3 3 3 . . 7 7 . Grunt 22 | . . 4 7 . . 2 3 6 Brawler 3 | . . . 2 . . . . 1 Duelist 2 | . . . . . . 1 1 . Sentry 7 | . . . 2 . . . 2 3 Hunter 1 | . . . . . . . 1 . Best Kill Streak 8 | 4 3 4 7 . . 4 7 8 Combat Bots Only 7 | . 3 4 4 . . 4 5 7 Max Kills in Single Turn 3 | 1 1 1 3 . . 3 3 2 Gunslinging . | . . . . . . . . . Exploded 3 | . 1 1 3 . . 3 3 1 Melee . | . . . . . . . . . Uniques/NPCs Destroyed . | . . . . . . . . . Combat | -11 -10 -10 -9 -9 -9 -8 -8 -7 -------- Run | Jun Mat Min Mat Min Exi Min Mat Fac Damage Taken 2812 | 5 71 469 244 . . 474 470 1079 Core 728 | . 11 123 80 . . 218 105 191 Absorbed by Shields . | . . . . . . . . . Core Remaining (%) 62 | 100 . 46 . . . 25 80 . Volleys Fired 221 | 14 6 42 46 . . 27 43 43 Largest 2 | 2 2 2 2 . . 2 2 2 Hottest 130 | 60 60 100 65 . . 130 43 51 Shots Fired 383 | 28 12 79 83 . . 61 69 51 Gun 316 | 28 12 75 72 . . 59 52 18 Cannon . | . . . . . . . . . Launcher 62 | . . . 11 . . 1 17 33 Special 5 | . . 4 . . . 1 . . Kinetic 229 | 14 6 61 60 . . 18 52 18 Thermal 40 | . . 4 . . . 36 . . Explosive 62 | . . . 11 . . 1 17 33 Electromagnetic 52 | 14 6 14 12 . . 6 . . Robot Hit Streak 14 | 6 5 9 13 . . 14 11 12 Robot Miss Streak 5 | 3 5 5 3 . . 4 2 1 Penetration Max 1 | . . . . . . . . 1 Secondary Targets 6 | . 1 2 1 . . 1 . 1 Max Gunslinging Chain 1 | . 1 1 1 . . 1 . 1 Autonomous 10 | . . . . . . 10 . . Shots Hit Robots 218 | 16 5 49 49 . . 42 39 18 Core Hits 188 | 8 3 23 45 . . 20 42 47 Critical Kills . | . . . . . . . . . Critical Parts Destroyed . | . . . . . . . . . Critical Strikes . | . . . . . . . . . Melee Attacks . | . . . . . . . . . Impact . | . . . . . . . . . Slashing . | . . . . . . . . . Piercing . | . . . . . . . . . Sneak Attacks . | . . . . . . . . . Combat Hostiles . | . . . . . . . . . Follow-up Attacks . | . . . . . . . . . Damage Inflicted 6989 | 243 76 652 1316 . . 887 1889 1926 Guns 2609 | 204 51 434 530 . . 728 387 275 Cannons . | . . . . . . . . . Explosions 4302 | 39 25 146 780 . . 159 1502 1651 Melee . | . . . . . . . . . Ramming 6 | . . . 6 . . . . . Kinetic 1478 | 58 18 345 312 . . 83 387 275 Thermal 827 | 39 25 218 . . . 545 . . Explosive 4092 | . . . 780 . . 159 1502 1651 Electromagnetic 586 | 146 33 89 218 . . 100 . . Impact . | . . . . . . . . . Slashing . | . . . . . . . . . Piercing . | . . . . . . . . . Highest Corruption . | . . . . . . . . . Average Corruption . | . . . . . . . . . Corruption Purged . | . . . . . . . . . Corruption Blocked . | . . . . . . . . . Overload Shots . | . . . . . . . . . Overflow Damage 136 | . . 14 7 . . . 97 18 Projectiles . | . . . . . . . . . Explosions 136 | . . 14 7 . . . 97 18 Melee . | . . . . . . . . . Knockbacks . | . . . . . . . . . Impact . | . . . . . . . . . Kinetic . | . . . . . . . . . Secondary . | . . . . . . . . . Self-Inflicted Damage 161 | 5 . 35 43 . . . 57 21 Shots 5 | 1 . 1 1 . . . 1 1 Rammed 1 | . . . 1 . . . . . Targets Rammed 1 | . . . 1 . . . . . Kicked . | . . . . . . . . . Crushed . | . . . . . . . . . Highest Temperature 378 | 72 40 274 45 . . 362 12 378 Average Temperature 109 | 38 21 117 14 . . 135 5 206 Received Heat Transfer 942 | . . 216 84 . . 207 108 327 Effects 3 | . . . . . . 1 . 2 Shutdowns 1 | . . . . . . . . 1 Interference 1 | . . . . . . . . 1 Damage (minor) 1 | . . . . . . 1 . . Siege Activations . | . . . . . . . . . Robots Corrupted . | . . . . . . . . . Combat Hostiles . | . . . . . . . . . Parts Fried 2 | 1 . . 1 . . . . . Impact Corruptions . | . . . . . . . . . Robots Melted . | . . . . . . . . . Combat Hostiles . | . . . . . . . . . Parts Melted 1 | . . . . . . 1 . . Heat Transferred 1449 | 100 . 350 . . . 999 . . Parts Sabotaged . | . . . . . . . . . Parts Stolen . | . . . . . . . . . Parts Stripped . | . . . . . . . . . Power Chain Reactions 3 | 1 1 1 . . . . . . Missiles Intercepted . | . . . . . . . . . Alert | -11 -10 -10 -9 -9 -9 -8 -8 -7 ------- Run | Jun Mat Min Mat Min Exi Min Mat Fac Peak Influence 602 | 30 95 168 457 141 . 174 476 602 Initial 191 | . 19 36 5 141 . . 14 191 Average 151 | 15 25 77 257 141 . 49 278 381 Maximum Alert Level 2 | . . . 2 . . . 2 2 Low Security (%) 71 | 100 100 100 38 100 . 100 31 10 Level 1 16 | . . . 38 . . . 38 45 Level 2 12 | . . . 22 . . . 30 44 Level 3 . | . . . . . . . . . Level 4 . | . . . . . . . . . Level 5 . | . . . . . . . . . High Security . | . . . . . . . . . Max Security . | . . . . . . . . . Squads Dispatched 10 | . 1 . 2 . . . 1 6 Investigation 3 | . . . 2 . . . . 1 Extermination . | . . . . . . . . . Reinforcement 3 | . 1 . . . . . 1 1 Assault . | . . . . . . . . . Garrison 4 | . . . . . . . . 4 Intercept . | . . . . . . . . . Searches Triggered . | . . . . . . . . . Construction Impeded 2 | . . . . . . . 1 1 Haulers Reinforced . | . . . . . . . . . Active Scanning Responses . | . . . . . . . . . Cargo Convoy Interrupts . | . . . . . . . . . Stealth | -11 -10 -10 -9 -9 -9 -8 -8 -7 --------- Run | Jun Mat Min Mat Min Exi Min Mat Fac Distress Signals 4 | . . . 1 . . . 2 1 Communications Jammed . | . . . . . . . . . Distress Signals . | . . . . . . . . . Times Spotted 65 | . 5 7 14 . . 10 17 12 Peak Tracking Total 5 | . 3 4 3 . . 4 5 4 Tactical Retreats 2 | . . . 1 . . . 1 . Traps | -11 -10 -10 -9 -9 -9 -8 -8 -7 ------- Run | Jun Mat Min Mat Min Exi Min Mat Fac Traps Triggered 2 | . 1 . 1 . . . . . Indirectly . | . . . . . . . . . Trap Hack Attempts . | . . . . . . . . . Triggered . | . . . . . . . . . Disarmed . | . . . . . . . . . Reprogrammed . | . . . . . . . . . Reused . | . . . . . . . . . Traps Extracted . | . . . . . . . . . Installed . | . . . . . . . . . Triggered . | . . . . . . . . . Machines | -11 -10 -10 -9 -9 -9 -8 -8 -7 ---------- Run | Jun Mat Min Mat Min Exi Min Mat Fac Machines Disabled 15 | . . . 2 . . 1 7 5 Max in Single Turn 2 | . . . 1 . . 1 2 2 Machines Repaired . | . . . . . . . . . Machines Sabotaged . | . . . . . . . . . Overloaded Fab Kills . | . . . . . . . . . Hacking | -11 -10 -10 -9 -9 -9 -8 -8 -7 --------- Run | Jun Mat Min Mat Min Exi Min Mat Fac Machines Accessed 14 | . 2 . 3 . . . 5 4 Terminals 9 | . 2 . 2 . . . 3 2 Fabricators . | . . . . . . . . . Repair Stations 1 | . . . . . . . . 1 Recycling Units 2 | . . . . . . . 2 . Scanalyzers 1 | . . . 1 . . . . . Garrison Access 1 | . . . . . . . . 1 Total Hacks 29 | . 4 . 7 . . . 8 10 Successful 9 | . . . 4 . . . 3 2 Failed 20 | . 4 . 3 . . . 5 8 Catastrophic 8 | . 2 . 1 . . . 2 3 Database Lockouts . | . . . . . . . . . Manual 19 | . 4 . 3 . 1 . 5 6 Terminals 21 | . 4 . 5 . . . 5 7 Fabricators . | . . . . . . . . . Repair Stations 2 | . . . . . . . . 2 Recycling Units 3 | . . . . . . . 3 . Scanalyzers 2 | . . . 2 . . . . . Garrison Access 1 | . . . . . . . . 1 Terminal Hacks 4 | . . . 2 . . . 1 1 Record 1 | . . . . . . . . 1 Branch Access Points 2 | . . . 1 . . . 1 . Alert Level 1 | . . . 1 . . . . . Fabricator Hacks . | . . . . . . . . . Repair Station Hacks 1 | . . . . . . . . 1 Scan Component 1 | . . . . . . . . 1 Recycling Unit Hacks 2 | . . . . . . . 2 . Process 1 | . . . . . . . 1 . Report Inventory 1 | . . . . . . . 1 . Scanalyzer 2 | . . . 2 . . . . . Insert Component 1 | . . . 1 . . . . . Analyze 1 | . . . 1 . . . . . Garrison Access Hacks . | . . . . . . . . . Unauthorized Hacks . | . . . . . . . . . Terminals . | . . . . . . . . . Fabricators . | . . . . . . . . . Repair Stations . | . . . . . . . . . Recycling Units . | . . . . . . . . . Scanalyzers . | . . . . . . . . . Garrison Access . | . . . . . . . . . Data Cores Recovered 1 | . . . 1 . . . . . Used . | . . . . . . . . . Hacking Detections 12 | . 2 . 3 . . . 4 3 Full Trace Events 3 | . . . 2 . . . . 1 Feedback Events . | . . . . . . . . . Feedback Blocked . | . . . . . . . . . Robot Schematics Acquired . | . . . . . . . . . Robots Built . | . . . . . . . . . Authchips . | . . . . . . . . . Time . | . . . . . . . . . Total Robot Build Rating . | . . . . . . . . . Part Schematics Acquired 1 | . . . 1 . . . . . Parts Built . | . . . . . . . . . Authchips . | . . . . . . . . . Time . | . . . . . . . . . Total Part Build Rating . | . . . . . . . . . Parts Repaired . | . . . . . . . . . Time . | . . . . . . . . . Parts Recycled . | . . . . . . . . . Recycled Matter 39 | . . . . . . . 39 . Retrieved Matter . | . . . . . . . . . Retrieved Components . | . . . . . . . . . Parts Scanalyzed 1 | . . . 1 . . . . . Part Schematics Acquired 1 | . . . 1 . . . . . Parts Damaged . | . . . . . . . . . Bothacking | -11 -10 -10 -9 -9 -9 -8 -8 -7 ------------ Run | Jun Mat Min Mat Min Exi Min Mat Fac Used RIF Installer . | . . . . . . . . . Robots Hacked . | . . . . . . . . . Non-combat . | . . . . . . . . . Combat . | . . . . . . . . . Robot Hacks Applied . | . . . . . . . . . Relay Couplers Released . | . . . . . . . . . Fabnet Peak Effective % . | . . . . . . . . . Robots Rewired . | . . . . . . . . . Allies Hacked . | . . . . . . . . . Hacks Repelled . | . . . . . . . . . Allies | -11 -10 -10 -9 -9 -9 -8 -8 -7 -------- Run | Jun Mat Min Mat Min Exi Min Mat Fac Total Allies . | . . . . . . . . . Largest Group . | . . . . . . . . . Highest-Rated Group . | . . . . . . . . . Highest-Rated Ally . | . . . . . . . . . Total Orders . | . . . . . . . . . Ally Attacks . | . . . . . . . . . Total Damage . | . . . . . . . . . Kills . | . . . . . . . . . Allies Corrupted . | . . . . . . . . . Allies Melted . | . . . . . . . . . Intel | -11 -10 -10 -9 -9 -9 -8 -8 -7 ------- Run | Jun Mat Min Mat Min Exi Min Mat Fac Robot Analysis Total . | . . . . . . . . . Derelict Logs Recovered 2 | . . 1 . 1 . . . . Drone Launches . | . . . . . . . . . Drone Recoveries . | . . . . . . . . . Exploration | -11 -10 -10 -9 -9 -9 -8 -8 -7 ------------- Run | Jun Mat Min Mat Min Exi Min Mat Fac Turns Passed 3742 | 124 227 702 507 51 263 972 621 275 Spaces Moved 2487 | 83 196 474 317 54 259 685 304 115 Core 6 | 3 . 2 . . . . . 1 Treads . | . . . . . . . . . Legs 77 | . . 77 . . . . . . Wheels 2404 | 80 196 395 317 54 259 685 304 114 Hover . | . . . . . . . . . Flight . | . . . . . . . . . Fastest Speed 50 | 50 90 95 95 95 95 110 115 105 Average Speed 111 | 89 103 115 101 95 98 123 115 115 Slowest Speed 500 | 100 105 500 155 95 110 145 115 200 Overloaded Moves . | . . . . . . . . . Propulsion Burnouts . | . . . . . . . . . Robots Hopped . | . . . . . . . . . Cave-ins Triggered . | . . . . . . . . . Exploration Rate (%) 40 | 3 34 80 36 7 64 98 34 4 Regions Visited 8 Branch Regions 4 Pre-discovered Areas 1 | . . . . 1 . . . . Known Exits Taken 1 | . . . 1 . . . . . Unknown Exits Taken 7 | 1 1 1 . 1 1 1 1 . Scrap Searched 1 | . . . . . . 1 . . Spaces Dug . | . . . . . . . . . Terrain Destroyed 299 | 3 6 2 65 . . 9 97 117 Melee . | . . . . . . . . . Projectile . | . . . . . . . . . AOE 299 | 3 6 2 65 . . 9 97 117 Terrain Rammed . | . . . . . . . . . Walls Destroyed . | . . . . . . . . . Machines Disabled . | . . . . . . . . . Actions | -11 -10 -10 -9 -9 -9 -8 -8 -7 --------- Run | Jun Mat Min Mat Min Exi Min Mat Fac Total 3088 | 104 209 553 426 53 268 759 514 202 Wait 225 | . 5 16 19 . . 16 142 27 Move 2479 | 82 195 473 316 53 258 684 303 115 Hop . | . . . . . . . . . Pick Up 45 | 1 2 9 12 . 3 11 5 2 Fast Attach 19 | 7 . 2 7 . 1 . 1 1 Attach 25 | . . 6 3 . . 9 3 4 Detach 3 | . . . . . . 3 . . Swap 42 | . 1 3 12 . 1 6 11 8 Drop 28 | . . 2 10 . 5 3 6 2 Fire 221 | 14 6 42 46 . . 27 43 43 Melee . | . . . . . . . . . Ram 1 | . . . 1 . . . . . Kick . | . . . . . . . . . Crush . | . . . . . . . . . Escape Stasis . | . . . . . . . . . Rewire . | . . . . . . . . . Trap . | . . . . . . . . . Miscellaneous . | . . . . . . . . . Route ------- -11/Junkyard -10/Materials -10/Mines (discovered 2 exits: *Mat x2) -9/Materials -9/Mines -9/Exiles -8/Mines (discovered 2 exits: *Mat x2) -8/Materials -7/Factory (discovered 1 exit: Sto) History --------- Turn | Location | Event 5 | -11/Junkyard | Discovered new exit (range 16) 125 | -11/Junkyard | Entered Materials 310 | -10/Materials | Build established: Mutant 316 | -10/Materials | Discovered new exit (range 5) 352 | -10/Materials | Entered Mines 494 | -10/Mines | Received a Rocket Launcher from a helpful Derelict 551 | -10/Mines | Core integrity fell below 50% 583 | -10/Mines | Lost 6 parts (3n2u1w) 860 | -10/Mines | Build established: Scavenger-Mutant 986 | -10/Mines | Discovered new exit (range 12) 999 | -10/Mines | Discovered new exit (range 11) 1054 | -10/Mines | Entered Materials 1054 | -9/Materials | Evolved 2 slots: Utility x2 1436 | -9/Materials | Identified exit to Mines 1561 | -9/Materials | Entered Mines 1579 | -9/Mines | Learned location of Storage (-7) 1605 | -9/Mines | Assembled infested the area 1608 | -9/Mines | Deemed a non-threat by the Exiles lab entrance 1608 | -9/Mines | Discovered new exit (range 5) 1612 | -9/Mines | Entered Exiles 1635 | -9/Exiles | Met 8R-AWN 1651 | -9/Exiles | Met EX-HEX 1678 | -9/Exiles | Met EX-BIN 1689 | -9/Exiles | Aligned with FarCom system 1689 | -9/Exiles | Given EX-Vault access code 1712 | -9/Exiles | Opened EX-Vault 1720 | -9/Exiles | Found Prototype Energy Gun 1720 | -9/Exiles | Identified AWS/Thermal 1745 | -9/Exiles | Warned to stay clear of 0b10 Research branches 1769 | -9/Exiles | Met EX-DEC 1864 | -9/Exiles | Discovered new exit (range 10) 1875 | -9/Exiles | Left Exiles lab with AWS/Thermal 1875 | -9/Exiles | Entered Mines 1972 | -8/Mines | Core integrity fell below 50% 1999 | -8/Mines | Lost 4 parts (1p2n1w) 2026 | -8/Mines | Discovered new exit (range 5) 2033 | -8/Mines | Discovered new exit (range 7) 2847 | -8/Mines | Entered Materials 2847 | -8/Materials | Evolved 2 slots: Utility x2 3442 | -8/Materials | Discovered new exit (range 18) 3468 | -8/Materials | Entered Factory 3468 | -7/Factory | Evolved 2 slots: Utility x2 3469 | -7/Factory | Identified exit to Storage 3720 | -7/Factory | Destroyed 7 combat bots 3722 | -7/Factory | Lost 5 parts (1p1n2u1w) 3743 | -7/Factory | Self-destructed Last Messages --------------- 03716_ U-05 Engineer lays Concrete. 03717_ The unstable cave ceiling collapses. 03717_ U-05 Engineer lays Concrete. 03718_ The unstable cave ceiling collapses. 03718_ U-05 Engineer lays Concrete. 03718_ Penetrated by Slug. 03719_ U-05 Engineer builds a Door. 03720_ U-05 Engineer lays Concrete. 03721_ Slug penetrates U-05 Engineer. 03721_ U-05 Engineer destroyed. 03722_ U-05 Engineer lays Concrete. 03733_ Destroyed Welding Torch. 03734_ Y-54 Guardian emerges from the garrison. 03736_ The unstable cave ceiling collapses. 03736_ Slug penetrates Garrison Access. 03736_ Com. Wheel destroyed. 03737_ The unstable cave ceiling collapses. 03737_ U-05 Engineer destroyed. 03738_ The unstable cave ceiling collapses. 03740_ Mni. Grenade Launcher destroyed. Map ----- +----------------------------------------------------+ | ??????????????????????????????????????? | | ??????????????????????????????????????? | | ??????????????????????????????????????? | | ??????????????????????????????????????? | | ??????????????????????????????????????? | | ??????????????????????????????????????? | | ??????????????????????????????????????? | | ??????????????????????????????????????? | | ???????????? o????????????????????? | | ???????????" ????????????????????? | | ???????????" ????????????????????? | | ??????????? ????????????????????? | | ?????#?????" ????????????????????? | | ?????# ???"" #????????????????????? | | ?????# ??"" #????????????????????? | | ?????# #????????????????????? | | ?????# """ #????????????????????? | | ?????# """ #????????????????????? | | ?????? """ #????????????????????? | | ??????? #????????????????????? | | ???????? #?????????????????????? | | ????????? ###???????????????????? | | ######??### #???????????????????? | | # #?## ########????????????? | | # #?# # ## #????????????? | | # *#?# ## @ # #????????????? | | # ### # * #????????????? | | # + != *#????????????? | | # ### # == #????????????? | | # #?# # # #????????????? | | # #?# # # # # #????????????? | | #! #?## ## Y ""G"" ###+## ??? | | ######?### "" "" ?? | | # ! * h ?? | | # ] """""" # ?? | | ????"""""" #|[[ ?? | | ?????""""" #|*[ ^ ??? | | ??????"""" #|%! ########??? | | ?????? # % # #?????? | | ??????######## # "" #?????? | | ?????????##### % "F"" #?????? | | ?????????# # """" #?????? | | ?????????# # #?????? | | ?????????# #########????? | | ?????????# # #????? | | ?????????#^^ # """ #????? | | ?????????# # "R" #????? | | ?????????# / "[" #????? | | ?????????# # #????? | | ????????+ # #????? | +----------------------------------------------------+ Best States ------------- Heat Dissipation 48 Energy Generation 14 Energy Capacity 250 Matter Stores 300 Matter Capacity 500 Sight Range 18 Terrain Scan Range 16 Terrain Scan Density 85 Additional Mass Support 9 Armor Coverage 450 Evasion (%) 42 Targeting Accuracy 5 Item Schematics ----------------- Lgt. Ion Engine | -9/Materials | Scanalyzed Robot Schematics ------------------ None Fabricated ------------ Nothing Alien Tech Used ----------------- None Achievements -------------- None Challenges ------------ None Game ------ Seed SkeletonRegenerativeSuite Manual? 0 Play Time 00:30:20 Cumulative 27.5 hours Start 2023.11.28 @ 13:27:59 End 2023.11.28 @ 13:56:56 Sessions 1 Manual Loads 0 Difficulty Rogue Special Mode None Game No. 36 Rogue 13 Adventurer 23 Explorer 0 Win Type - Total 1 Types 1/0/0/0/0/0/0/0/0 Lore% 46 Gallery% 42 Achievement% 41 Wizard Run 0 Options --------- ASCII 0 Keyboard 0 Movement Mouse Keybinds 0 Fullscreen 2 Font 18/Terminus Map View 76x50 Tactical HUD 1 Map Filters NONE Filters NONE Steam 1 RUN: 330046da-9e6b-4b91-b3fb-b7d485547263